bitfinex/quotes_SOLUSD_20250724
["timestamp","ask_amount","ask_price","bid_price","bid_amount"]
[1753343460549,0.2,183.07,183.05,7.8902584]
[1753343460749,8.6102584,183.06,183.02,38.84]
[1753343460955,8.6102584,183.05,183.02,38.84]
[1753343461182,5.66243521,183.07,183.02,39.56]
[1753343461358,5.66243521,183.07,183.02,47.4502584]
[1753343461359,13.55269361,183.07,183.02,47.4502584]
[1753343461553,0.2,183.07,183.03,0.72]
[1753343461853,0.2,183.07,183.06,13.35294822]
[1753343462064,0.2,183.07,183.06,52.91294822]
[1753343462259,0.2,183.07,183.06,47.99652738]
[1753343462457,0.2,183.07,183.06,46.7302584]
[1753343462856,0.2,183.07,183.04,7.8902584]
[1753343463057,0.2,183.07,183.05,38.84]
[1753343463452,0.2,183.07,183.05,39.56]
[1753343463871,0.2,183.07,183.06,8.6102584]
[1753343464372,0.2,183.07,183.06,25.39494237]
[1753343464574,0.2,183.07,183.06,8.6102584]
[1753343465179,0.2,183.07,183.06,25.39494237]
[1753343465481,0.03,183.09,183.08,42.78468397]
[1753343465676,0.03,183.09,183.08,90.06115167]
[1753343465858,0.03,183.13,183.12,13.35115835]
[1753343466182,0.03,183.13,183.12,52.73724834]
[1753343466474,0.03,183.13,183.12,70.24193231]
[1753343467268,0.03,183.13,183.12,9.15634839]
[1753343467471,0.03,183.13,183.12,38.84]
[1753343468258,0.03,183.13,183.12,47.4502584]
[1753343469270,0.03,183.13,183.12,52.91115835]
[1753343471272,0.03,183.13,183.12,45.02089995]
[1753343471472,0.03,183.13,183.12,47.4502584]
[1753343472061,0.03,183.13,183.12,52.91115835]
[1753343472587,0.03,183.13,183.12,95.69584232]
[1753343472756,0.03,183.13,183.12,96.24193231]
[1753343474771,0.03,183.13,183.12,70.24193231]
[1753343474979,0.03,183.13,183.12,71.83263231]
[1753343475574,0.03,183.13,183.12,74.60816692]
[1753343476974,1e-08,183.13,183.12,74.60816692]
[1753343477175,0.03,183.15,183.14,42.78468397]
[1753343477376,0.03,183.15,183.14,97.93123112]
[1753343477563,0.03,183.15,183.14,98.60123112]
[1753343478374,0.03,183.15,183.14,51.89097272]
[1753343478566,0.03,183.15,183.14,90.71097272]
[1753343478766,0.03,183.15,183.14,96.17127631]
[1753343482591,0.03,183.15,183.14,88.28101791]
[1753343482772,0.03,183.15,183.14,96.17127631]
[1753343483092,0.03,183.15,183.14,104.06153471]
[1753343483387,0.03,183.15,183.14,103.51550436]
[1753343483996,1e-08,183.15,183.14,103.51550436]
[1753343484171,0.03,183.17,183.15,16.78468397]
[1753343484372,0.03,183.17,183.16,64.0209131]
[1753343484898,0.03,183.17,183.16,64.6909131]
[1753343485085,0.03,183.17,183.16,70.15062045]
[1753343485290,0.2,183.18,183.17,24.67494237]
[1753343485465,0.2,183.18,183.17,25.34494237]
[1753343486094,0.2,183.18,183.17,24.67494237]
[1753343486400,0.2,183.18,183.17,25.34494237]
[1753343487173,0.2,183.18,183.17,69.60435166]
[1753343489594,0.03,183.23,183.21,16.78468397]
[1753343489799,0.03,183.23,183.22,64.02073431]
[1753343490099,0.03,183.23,183.22,64.69073431]
[1753343491575,0.03,183.23,183.22,70.14865375]
[1753343491777,0.03,183.25,183.24,50.67494237]
[1753343492088,0.03,183.25,183.24,97.36520077]
[1753343492269,0.03,183.25,183.24,90.02067474]
[1753343492476,0.03,183.25,183.24,90.69067474]
[1753343493305,0.03,183.25,183.24,34.43599077]
[1753343493482,0.03,183.25,183.24,46.6902584]
[1753343493676,0.03,183.25,183.24,52.14758212]
[1753343493878,0.03,183.25,183.24,52.81758212]
[1753343494081,0.03,183.25,183.24,70.14799846]
[1753343494286,0.03,183.25,183.24,96.14799846]
[1753343494889,0.03,183.25,183.24,95.47799846]
[1753343495206,0.03,183.25,183.24,78.69331449]
[1753343495400,0.03,183.25,183.24,7.8902584]
[1753343495573,0.68,183.25,183.24,46.6702584]
[1753343496182,0.68,183.25,183.21,33.8902584]
[1753343496387,10.1237584,183.25,183.22,38.78]
[1753343496605,0.65,183.24,183.22,38.78]
[1753343496902,0.65,183.23,183.22,38.78]
[1753343497289,1.5835,183.25,183.22,46.6702584]
[1753343497486,1.5835,183.25,183.24,7.8902584]
[1753343497689,0.03,183.25,183.24,46.6702584]
[1753343498078,0.03,183.25,183.24,38.78]
[1753343498279,0.68,183.25,183.24,38.78]
[1753343499210,0.03,183.25,183.24,46.6702584]
[1753343501111,0.03,183.25,183.24,52.12758212]
[1753343501898,0.03,183.25,183.24,52.79758212]
[1753343502101,0.03,183.25,183.24,69.58226609]
[1753343502406,0.03,183.25,183.24,8.5602584]
[1753343502608,0.03,183.25,183.24,46.6702584]
[1753343503012,0.03,183.25,183.24,7.8902584]
[1753343503315,0.03,183.25,183.24,46.6702584]
[1753343503606,0.03,183.25,183.24,52.12758212]
[1753343504237,0.03,183.25,183.24,46.6702584]
[1753343505215,0.03,183.25,183.24,52.12758212]
[1753343505414,0.03,183.25,183.24,52.79758212]
[1753343506216,0.03,183.25,183.24,52.12758212]
[1753343507199,0.03,183.25,183.24,52.79758212]
[1753343508308,0.03,183.25,183.24,70.12799846]
[1753343509198,0.03,183.25,183.24,71.88585956]
[1753343509518,0.03,183.25,183.24,67.06179981]
[1753343509908,0.03,183.25,183.24,44.23732372]
[1753343510113,0.03,183.25,183.24,49.06138347]
[1753343510730,0.03,183.25,183.24,44.23732372]
[1753343510931,0.03,183.25,183.23,0.06]
[1753343510932,0.7,183.25,183.23,0.06]
[1753343511099,0.03,183.25,183.24,38.78]
[1753343511518,0.03,183.25,183.24,43.60405975]
[1753343512719,0.7,183.25,183.24,38.78]
[1753343513524,0.03,183.25,183.24,38.78]
[1753343514533,0.7,183.25,183.24,38.78]
[1753343519709,0.03,183.25,183.24,38.78]
[1753343519915,0.03,183.25,183.24,49.73138347]
[1753343520140,0.03,183.25,183.24,71.88585956]
[1753343520435,0.03,183.25,183.24,38.78]
[1753343520639,0.03,183.25,183.23,0.06]
[1753343520640,7.14625975,183.25,183.23,0.06]
[1753343520838,7.0824,183.24,183.2,38.78]
[1753343521015,4.82405975,183.22,183.19,38.78]
[1753343521212,0.67,183.22,183.19,38.78]
[1753343521413,4.82405975,183.2,183.15,0.06]
[1753343521651,4.82405975,183.19,183.16,38.76]
[1753343521937,0.67,183.21,183.17,4.82405975]
[1753343522141,4.82405975,183.19,183.18,38.76]
[1753343522346,5.49405975,183.19,183.15,0.06]
[1753343522522,4.82405975,183.17,183.15,0.06]
[1753343522727,4.82405975,183.16,183.15,0.06]
[1753343522935,12.07425975,183.16,183.15,0.06]
[1753343524017,17.5339671,183.16,183.15,0.06]
[1753343524336,12.07425975,183.16,183.15,0.06]
[1753343524645,17.5339671,183.16,183.15,0.06]
[1753343525236,20.588043,183.16,183.15,0.06]
[1753343525441,12.70990735,183.16,183.15,0.06]
[1753343525651,20.588043,183.16,183.15,0.06]
[1753343527132,7.2502,183.16,183.15,0.06]
[1753343527346,1.5323,183.18,183.15,0.06]
[1753343527518,0.67,183.16,183.15,0.06]
[1753343528834,9.41043565,183.18,183.15,38.84]
[1753343529042,10.08043565,183.18,183.15,38.84]
[1753343529737,9.41043565,183.18,183.15,38.84]
[1753343529914,0.67,183.17,183.15,38.84]
[1753343530555,1.5323,183.18,183.15,38.84]
[1753343530759,0.67,183.2,183.16,7.87813565]
[1753343531136,14.96123565,183.22,183.16,8.54813565]
[1753343532063,14.96123565,183.22,183.16,14.00776699]
[1753343532064,12.54102531,183.22,183.16,14.00776699]
[1753343532266,20.41916096,183.22,183.16,14.00776699]
[1753343533243,13.33637394,183.21,183.16,7.87813565]
[1753343533440,0.68,183.2,183.16,7.87813565]
[1753343533751,0.68,183.2,183.16,13.33779417]
[1753343535157,7.87813565,183.2,183.15,44.29994353]
[1753343535359,6.4131,183.22,183.16,8.55813565]
[1753343535539,9.57073565,183.23,183.15,44.29994353]
[1753343535729,8.55813565,183.21,183.16,38.78]
[1753343535936,0.68,183.2,183.16,46.65813565]
[1753343536151,7.87813565,183.22,183.17,7.87813565]
[1753343536454,0.68,183.22,183.18,0.68]
[1753343536660,0.68,183.21,183.19,38.78]
[1753343536975,0.68,183.2,183.19,38.78]
[1753343537843,8.55813565,183.2,183.19,38.78]
[1753343538158,14.01665093,183.2,183.19,38.78]
[1753343538356,14.01665093,183.2,183.15,0.06]
[1753343538357,14.01665093,183.2,183.16,38.78]
[1753343538562,8.55813565,183.19,183.16,38.78]
[1753343539150,0.68,183.18,183.16,38.78]
[1753343540159,8.55813565,183.18,183.16,38.78]
[1753343540358,0.68,183.18,183.16,38.78]
[1753343542963,0.68,183.2,183.16,38.78]
[1753343543148,8.55813565,183.2,183.16,38.78]
[1753343543669,5.45791944,183.22,183.17,0.68]
[1753343543869,0.03,183.23,183.2,7.87813565]
[1753343544065,0.03,183.23,183.21,38.78]
[1753343544360,0.68,183.22,183.21,38.78]
[1753343544562,0.68,183.22,183.2,38.78]
[1753343544765,0.68,183.21,183.2,38.78]
[1753343545159,8.55813565,183.21,183.2,38.78]
[1753343545557,8.55813565,183.21,183.18,38.78]
[1753343545752,0.68,183.2,183.18,38.78]
[1753343546279,0.68,183.19,183.18,38.78]
[1753343546864,13.33644244,183.21,183.18,38.78]
[1753343547070,0.68,183.2,183.18,38.78]
[1753343547450,0.68,183.19,183.18,38.78]
[1753343548046,5.51122019,183.19,183.18,38.78]
[1753343549062,10.97006673,183.19,183.15,0.06]
[1753343549281,10.97006673,183.19,183.16,38.78]
[1753343549972,0.68,183.19,183.16,38.78]
[1753343550173,5.51122019,183.22,183.17,10.97062948]
[1753343550553,5.51122019,183.22,183.17,10.29062948]
[1753343550863,5.51122019,183.22,183.18,0.68]
[1753343551246,5.51122019,183.21,183.16,44.29960876]
[1753343551450,0.68,183.2,183.16,44.97960876]
[1753343551876,5.51122019,183.2,183.16,44.97960876]
[1753343552361,4.83122019,183.2,183.16,44.97960876]
[1753343552965,5.45796265,183.22,183.16,44.97960876]
[1753343553265,5.51122019,183.2,183.16,39.52]
[1753343553858,0.68,183.2,183.16,39.52]
[1753343554074,5.51122019,183.2,183.16,39.52]
[1753343554270,4.83122019,183.18,183.16,38.84]
[1753343554450,10.97062948,183.17,183.16,0.06]
[1753343556655,36.97062948,183.17,183.16,0.06]
[1753343557276,4.83122019,183.17,183.16,0.06]
[1753343557480,10.29062948,183.17,183.16,0.06]
[1753343557969,10.97062948,183.17,183.16,0.06]
[1753343559177,10.29062948,183.17,183.16,0.06]
[1753343559579,4.83122019,183.17,183.16,0.06]
[1753343559761,7.0202,183.19,183.16,0.06]
[1753343559962,43.61122019,183.22,183.16,5.57122019]
[1753343560167,0.03,183.23,183.19,4.83122019]
[1753343560493,0.03,183.23,183.2,6.13851528]
[1753343560653,0.03,183.23,183.2,0.68]
[1753343560859,5.51122019,183.22,183.17,5.51122019]
[1753343561059,5.51122019,183.21,183.18,38.78]
[1753343561556,0.03,183.23,183.18,39.46]
[1753343561754,4.83122019,183.22,183.18,38.78]
[1753343561958,4.86122019,183.23,183.19,0.68]
[1753343562157,4.86122019,183.23,183.2,0.68]
[1753343563178,0.03,183.23,183.2,0.68]
[1753343563481,0.03,183.23,183.21,0.7]
[1753343564866,0.03,183.23,183.2,4.83122019]
[1753343565073,0.03,183.23,183.22,0.7]
[1753343567485,0.03,183.23,183.22,10.98913963]
[1753343567686,0.03,183.23,183.22,5.53122019]
[1753343568197,0.03,183.23,183.22,44.29122019]
[1753343568365,0.03,183.23,183.22,39.46]
[1753343570793,0.03,183.23,183.2,5.53122019]
[1753343571096,0.03,183.23,183.21,38.76]
[1753343571474,0.03,183.23,183.21,39.46]
[1753343571985,0.03,183.23,183.21,44.21821431]
[1753343572293,0.03,183.23,183.22,0.7]
[1753343572589,0.03,183.23,183.22,39.46]
[1753343572890,0.03,183.23,183.22,38.76]
[1753343576088,0.03,183.23,183.22,39.46]
[1753343576893,0.03,183.23,183.22,38.76]
[1753343579001,0.03,183.23,183.22,38.74]
[1753343579320,5.52122019,183.23,183.22,38.74]
[1753343579472,0.03,183.23,183.22,38.74]
[1753343580581,0.03,183.23,183.22,39.44]
[1753343580778,0.03,183.23,183.22,38.74]
[1753343582693,0.69,183.23,183.22,38.74]
[1753343584908,6.14762156,183.23,183.22,38.74]
[1753343585779,10.97884175,183.23,183.21,0.06]
[1753343586099,10.31884175,183.23,183.21,0.06]
[1753343586289,10.97884175,183.23,183.21,0.06]
[1753343586903,5.49122019,183.22,183.21,0.06]
[1753343587399,22.27590416,183.22,183.21,0.06]
[1753343588283,25.12287667,183.22,183.21,0.06]
[1753343589102,30.58079611,183.22,183.21,0.06]
[1753343589707,16.78468397,183.21,183.17,0.06]
[1753343589890,4.83122019,183.18,183.17,0.06]
[1753343590710,5.49122019,183.18,183.17,0.06]
[1753343591088,10.95033144,183.18,183.17,0.06]
[1753343592381,5.45902045,183.19,183.17,0.06]
[1753343592710,4.83122019,183.18,183.17,0.76]
[1753343594394,4.83122019,183.21,183.17,0.76]
[1753343594592,1.6913,183.23,183.19,4.83122019]
[1753343594593,0.03,183.23,183.19,4.83122019]
[1753343594894,5.54122019,183.23,183.19,39.41]
[1753343595284,4.83122019,183.22,183.19,39.41]
[1753343596890,4.83122019,183.21,183.19,38.74]
[1753343597582,10.28921263,183.22,183.19,38.74]
[1753343597782,0.68,183.21,183.19,38.74]
[1753343598006,4.83122019,183.21,183.19,38.74]
[1753343598986,10.28944971,183.21,183.19,38.74]
[1753343599993,5.45822952,183.21,183.19,38.74]
[1753343600584,5.51122019,183.2,183.19,38.74]
[1753343600785,5.51122019,183.2,183.17,0.06]
[1753343600986,4.83122019,183.19,183.17,0.06]
[1753343601197,10.29033144,183.18,183.17,0.06]
[1753343603819,10.97033144,183.18,183.17,0.06]
[1753343604205,10.29033144,183.18,183.17,0.06]
[1753343604509,10.29001617,183.2,183.17,0.73]
[1753343604892,4.83122019,183.2,183.17,0.06]
[1753343605092,30.83122019,183.2,183.18,0.67]
[1753343605317,4.83122019,183.2,183.18,0.67]
[1753343605504,10.28978952,183.2,183.18,0.67]
[1753343606102,10.28978952,183.2,183.17,0.06]
[1753343606310,10.28978952,183.2,183.17,0.73]
[1753343606695,10.28978952,183.2,183.18,0.67]
[1753343606894,10.28952216,183.21,183.18,0.67]
[1753343608089,0.03,183.23,183.19,5.50122019]
[1753343608304,0.03,183.23,183.2,5.50122019]
[1753343608504,0.03,183.23,183.21,4.83122019]
[1753343608713,0.03,183.23,183.21,5.50122019]
[1753343608904,0.03,183.23,183.22,5.50122019]
[1753343611217,0.03,183.23,183.22,0.67]
[1753343611917,0.03,183.23,183.21,5.45808108]
[1753343612122,0.03,183.23,183.2,39.41]
[1753343612422,0.03,183.23,183.21,0.67]
[1753343614319,0.03,183.23,183.2,43.57122019]
[1753343614513,0.03,183.23,183.2,44.24122019]
[1753343614694,0.03,183.23,183.21,0.67]
[1753343615096,0.03,183.23,183.22,0.67]
[1753343615294,0.03,183.23,183.2,43.57122019]
[1753343615495,0.03,183.23,183.21,0.67]
[1753343616720,5.51122019,183.22,183.17,0.06]
[1753343617018,5.51122019,183.21,183.17,0.06]
[1753343617200,0.71,183.23,183.18,0.67]
[1753343617403,4.86122019,183.23,183.19,0.67]
[1753343617726,0.03,183.23,183.2,4.83122019]
[1753343617909,0.03,183.23,183.21,0.67]
[1753343618418,0.03,183.23,183.22,0.67]
[1753343619815,0.03,183.23,183.22,5.50122019]
[1753343620210,0.03,183.23,183.22,10.95913963]
[1753343620403,0.03,183.23,183.22,49.67913963]
[1753343634748,0.03,183.23,183.22,50.22493157]
[1753343636134,1e-08,183.23,183.22,186.04083573]
[1753343636441,0.2,183.26,183.25,26.0]
[1753343636624,1e-08,183.26,183.25,70.05692278]
[1753343636827,1e-08,183.26,183.25,87.52160675]
[1753343637428,1e-08,183.26,183.25,92.97863267]
[1753343637939,1e-08,183.26,183.25,76.1939487]
[1753343638346,1e-08,183.26,183.25,92.97863267]
[1753343640145,1e-08,183.26,183.25,54.29863267]
[1753343640330,1e-08,183.26,183.25,92.97863267]
[1753343643637,1e-08,183.26,183.25,5.45702592]
[1753343643827,1e-08,183.26,183.25,38.68]
[1753343644028,1e-08,183.26,183.25,43.51122019]
[1753343644029,0.70000001,183.26,183.25,43.51122019]
[1753343644853,1e-08,183.26,183.25,43.51122019]
[1753343645631,1e-08,183.26,183.25,38.68]
[1753343645935,0.70000001,183.26,183.25,38.68]
[1753343646144,5.5312202,183.26,183.25,38.68]
[1753343647052,5.5312202,183.26,183.24,38.68]
[1753343647448,0.7,183.25,183.24,38.68]
[1753343648032,0.70000001,183.26,183.24,38.68]
[1753343648648,0.7,183.25,183.24,38.68]
[1753343653461,10.98824611,183.25,183.23,38.66]
[1753343653767,0.69,183.24,183.23,38.66]
[1753343655050,5.45681273,183.26,183.23,38.66]
[1753343655241,10.97803292,183.26,183.23,38.66]
[1753343655748,0.69000001,183.26,183.23,39.33]
[1753343655954,1e-08,183.26,183.23,39.33]
[1753343656141,1e-08,183.26,183.23,44.78758456]
[1753343656960,1e-08,183.26,183.24,0.67]
[1753343657271,1e-08,183.26,183.25,38.66]
[1753343660442,1e-08,183.26,183.25,39.33]
[1753343660648,1e-08,183.26,183.25,39.39]
[1753343661552,1e-08,183.26,183.25,38.72]
[1753343664360,1e-08,183.26,183.25,49.67824611]
[1753343667478,1e-08,183.26,183.25,44.84702592]
[1753343667660,1e-08,183.26,183.25,49.67824611]
[1753343673683,1e-08,183.26,183.25,11.01824611]
[1753343673865,1e-08,183.26,183.25,49.65824611]
[1753343676985,1e-08,183.26,183.25,44.82702592]
[1753343677190,1e-08,183.26,183.25,48.98824611]
[1753343677683,1e-08,183.26,183.25,43.53122019]
[1753343677861,1e-08,183.26,183.25,48.98824611]
[1753343678688,1e-08,183.26,183.25,38.7]
[1753343678871,5.5212202,183.26,183.25,0.06]
[1753343679077,10.97794834,183.26,183.25,38.7]
[1753343679274,10.97794834,183.26,183.25,0.06]
[1753343680696,17.29704834,183.26,183.25,0.06]
[1753343681271,38.9129525,183.26,183.25,0.06]
[1753343681467,26.0,183.23,183.21,0.06]
[1753343681673,4.83122019,183.22,183.21,0.06]
[1753343681890,5.52122019,183.22,183.21,0.06]
[1753343682190,0.69,183.25,183.21,48.98939984]
[1753343682485,4.83122019,183.25,183.21,39.37]
[1753343682698,0.69,183.24,183.21,38.7]
[1753343683190,0.69,183.23,183.21,38.7]
[1753343683406,1e-08,183.26,183.22,5.50122019]
[1753343683568,1e-08,183.26,183.23,43.47122019]
[1753343683771,1e-08,183.26,183.24,4.83122019]
[1753343683991,1e-08,183.26,183.25,38.64]
[1753343684487,1e-08,183.26,183.25,39.31]
[1753343684693,1e-08,183.26,183.25,38.64]
[1753343684868,1e-08,183.26,183.21,5.51818378]
[1753343684869,5.5212202,183.26,183.21,0.06]
[1753343685069,4.83122019,183.24,183.22,38.64]
[1753343685475,0.69,183.23,183.22,38.64]
[1753343687681,4.83122019,183.24,183.22,38.64]
[1753343688079,5.52122019,183.24,183.22,38.64]
[1753343688294,4.83122019,183.25,183.22,38.64]
[1753343688592,1e-08,183.26,183.23,0.67]
[1753343688972,1e-08,183.26,183.23,5.50122019]
[1753343689171,1e-08,183.26,183.24,0.67]
[1753343689494,1e-08,183.26,183.25,38.64]
[1753343692101,1e-08,183.26,183.25,44.14122019]
[1753343692285,1e-08,183.26,183.25,38.64]
[1753343692899,1e-08,183.26,183.25,49.59824611]
[1753343693479,1e-08,183.26,183.25,92.38293008]
[1753343693680,1e-08,183.26,183.25,92.92863267]
[1753343694700,1e-08,183.26,183.25,66.92863267]
[1753343699382,1e-08,183.26,183.25,155.12863267]
[1753343699587,1e-08,183.26,183.25,154.58293008]
[1753343700809,1e-08,183.27,183.26,16.78468397]
[1753343701093,0.03,183.29,183.28,42.78468397]
[1753343701310,0.03,183.29,183.28,86.78151742]
[1753343701497,0.03,183.29,183.28,87.45151742]
[1753343702798,0.03,183.3,183.28,92.90765011]
[1753343703114,0.03,183.3,183.29,5.50122019]
[1753343703302,0.2,183.37,183.3,16.78468397]
[1753343703504,0.2,183.37,183.3,61.43145789]
[1753343704015,0.2,183.37,183.3,65.72428964]
[1753343704204,0.2,183.37,183.32,42.78468397]
[1753343704402,0.2,183.37,183.32,174.96139837]
[1753343704595,0.2,183.37,183.32,175.08590416]
[1753343704803,0.2,183.37,183.32,185.37206652]
[1753343705108,0.2,183.37,183.33,10.33244038]
[1753343705606,0.2,183.37,183.33,10.20790484]
[1753343705801,0.2,183.37,183.33,13.63340562]
[1753343706006,0.2,183.37,183.36,42.78468397]
[1753343706315,0.2,183.37,183.36,174.96127937]
[1753343706499,0.2,183.37,183.36,86.88590416]
[1753343706693,0.2,183.4,183.39,42.78468397]
[1753343706941,1e-08,183.4,183.39,92.21405018]
[1753343707218,0.69,183.51,183.43,42.78468397]
[1753343707401,0.69,183.51,183.44,43.97635756]
[1753343707716,0.69,183.51,183.44,44.64635756]
[1753343709021,0.69,183.51,183.44,50.0977313]
[1753343709400,0.69,183.51,183.44,66.88241527]
[1753343711114,0.69,183.52,183.44,66.88241527]
[1753343711617,1e-08,183.45,183.44,66.88241527]
[1753343712119,1e-08,183.45,183.44,155.08241527]
[1753343712418,1e-08,183.45,183.44,154.5372779]
[1753343714216,1e-08,183.45,183.44,175.03605771]
[1753343714448,1e-08,183.45,183.44,179.8672779]
[1753343715122,1e-08,183.45,183.44,175.03605771]
[1753343715298,1e-08,183.45,183.44,179.8672779]
[1753343716004,1e-08,183.45,183.44,38.6]
[1753343716216,0.68000001,183.45,183.44,43.43122019]
[1753343716430,0.68000001,183.45,183.44,38.6]
[1753343718409,6.13107659,183.45,183.44,38.6]
[1753343718609,10.96229678,183.45,183.42,38.56]
[1753343718811,0.68,183.44,183.41,38.56]
[1753343719034,4.83122019,183.43,183.41,38.56]
[1753343719233,0.68,183.42,183.41,38.56]
[1753343719411,0.68,183.42,183.4,38.56]
[1753343719602,0.68,183.41,183.4,38.56]
[1753343721548,0.68000001,183.45,183.4,44.06122019]
[1753343721732,1e-08,183.45,183.44,4.83122019]
[1753343722029,1e-08,183.45,183.44,43.39122019]
[1753343722420,1e-08,183.45,183.44,44.06122019]
[1753343723212,1e-08,183.45,183.44,49.51259393]
[1753343723506,1e-08,183.45,183.44,48.84259393]
[1753343724504,1e-08,183.45,183.44,44.01137374]
[1753343724712,1e-08,183.45,183.44,48.84259393]
[1753343725840,1e-08,183.45,183.44,44.01137374]
[1753343726015,0.68000001,183.45,183.44,43.39122019]
[1753343726422,1e-08,183.45,183.44,43.39122019]
[1753343727129,1e-08,183.45,183.44,38.56]
[1753343727313,1e-08,183.45,183.44,43.39122019]
[1753343727729,0.68000001,183.45,183.44,38.56]
[1753343727914,0.68000001,183.45,183.44,43.39122019]
[1753343728553,1e-08,183.45,183.44,43.39122019]
[1753343729620,0.68000001,183.45,183.44,43.39122019]
[1753343730643,0.68000001,183.45,183.44,38.56]
[1753343730936,0.68000001,183.45,183.42,26.0]
[1753343730937,6.13107659,183.45,183.4,0.06]
[1753343731143,5.51122019,183.44,183.4,0.06]
[1753343731336,5.51122019,183.44,183.41,38.56]
[1753343731532,0.68,183.43,183.41,38.56]
[1753343732135,0.68000001,183.45,183.42,4.83122019]
[1753343732442,0.68000001,183.45,183.43,43.39122019]
[1753343733038,0.68000001,183.45,183.43,38.56]
[1753343733742,0.68000001,183.45,183.44,5.50122019]
[1753343733743,1e-08,183.45,183.44,5.50122019]
[1753343734048,1e-08,183.45,183.44,6.04635756]
[1753343734750,1e-08,183.45,183.44,11.4977313]
[1753343736742,1e-08,183.45,183.44,5.99651111]
[1753343737049,1e-08,183.45,183.44,10.8277313]
[1753343737228,1e-08,183.45,183.44,5.99651111]
[1753343737425,0.68000001,183.45,183.44,38.56]
[1753343741137,1e-08,183.45,183.44,43.39122019]
[1753343741531,1e-08,183.45,183.44,49.51259393]
[1753343742132,1e-08,183.45,183.44,50.0577313]
[1753343742343,1e-08,183.45,183.44,66.84241527]
[1753343742542,1e-08,183.45,183.44,155.04241527]
[1753343742749,1e-08,183.45,183.44,154.4972779]
[1753343744555,0.03,183.49,183.48,42.78468397]
[1753343744749,0.03,183.49,183.48,86.72092269]
[1753343744943,0.03,183.49,183.48,92.84110799]
[1753343747959,0.03,183.49,183.48,181.04110799]
[1753343748166,0.03,183.49,183.48,180.49608946]
[1753343749555,1e-08,183.49,183.48,180.49608946]
[1753343750259,1e-08,183.49,183.48,185.32730965]
[1753343750463,0.03,183.53,183.52,21.61590416]
[1753343750654,0.03,183.53,183.52,148.90080389]
[1753343750862,0.03,183.53,183.52,149.02590416]
[1753343751163,0.03,183.53,183.52,179.80490154]
[1753343751362,0.71,183.53,183.52,157.57122019]
[1753343751548,0.71,183.53,183.52,88.2]
[1753343751747,0.71,183.53,183.52,126.74]
[1753343752146,0.71,183.53,183.52,38.54]
[1753343753146,0.71,183.53,183.49,10.28103802]
[1753343753347,0.71,183.53,183.5,38.54]
[1753343753749,0.03,183.53,183.5,38.54]
[1753343754066,0.68,183.52,183.5,38.54]
[1753343755453,0.03,183.53,183.5,38.54]
[1753343755650,0.68,183.51,183.5,38.54]
[1753343756661,0.71,183.53,183.5,38.54]
[1753343756858,0.68,183.52,183.5,38.54]
[1753343757166,0.68,183.52,183.5,48.82078578]
[1753343757362,0.03,183.53,183.51,4.83122019]
[1753343757553,0.71,183.53,183.52,38.54]
[1753343758857,0.71,183.53,183.52,48.82021757]
[1753343758858,0.03,183.53,183.52,48.82021757]
[1753343760965,0.03,183.53,183.52,43.37122019]
[1753343761362,5.54122019,183.53,183.48,26.0]
[1753343761551,0.03,183.53,183.49,39.21]
[1753343761748,0.03,183.53,183.52,30.83122019]